[Event "NM-Senior Hurtig 2018"]
[Site "Frimurer Logen, Norway"]
[Date "2018.11.10"]
[Round "5.12"]
[White "Simonsen, Steinar"]
[Black "Jansson, Helge"]
[Result "0-1"]
[TimeControl "20 + 10"]
[WhiteElo "1397"]
[BlackElo "1712"]

1. e4 {[%clk 00:20:07]} {[%emt 00:00:03]} e6 {[%clk 00:20:06]} {[%emt
00:00:05]} 2. d4 {[%clk 00:20:13]} {[%emt 00:00:05]} d5 {[%clk 00:20:15]} 3.
exd5 {[%clk 00:20:15]} {[%emt 00:00:07]} exd5 {[%clk 00:20:24]} {[%emt
00:00:02]} 4. Nf3 {[%clk 00:20:11]} {[%emt 00:00:13]} Bd6 {[%clk 00:20:28]}
{[%emt 00:00:07]} 5. Be3 {[%clk 00:20:13]} {[%emt 00:00:08]} Ne7 {[%clk
00:20:21]} {[%emt 00:00:16]} 6. Bd3 {[%clk 00:20:07]} {[%emt 00:00:16]} O-O
{[%clk 00:19:53]} {[%emt 00:00:39]} 7. O-O {[%clk 00:20:10]} {[%emt 00:00:06]}
Bf5 {[%emt 00:00:06]} 8. Bxf5 {[%clk 00:19:54]} {[%emt 00:00:24]} Nxf5 {[%clk
00:20:08]} {[%emt 00:00:02]} 9. Qd3 {[%clk 00:20:00]} {[%emt 00:00:03]} Ne7
{[%clk 00:16:55]} {[%emt 00:03:23]} 10. c4 {[%clk 00:19:51]} {[%emt 00:00:19]}
c6 {[%clk 00:16:56]} {[%emt 00:00:10]} 11. Nc3 {[%clk 00:19:46]} {[%emt
00:00:15]} Nd7 {[%clk 00:16:47]} {[%emt 00:00:18]} 12. c5 {[%clk 00:19:19]}
{[%emt 00:00:37]} Bc7 {[%clk 00:16:33]} {[%emt 00:00:25]} 13. Ng5 {[%clk
00:18:04]} {[%emt 00:01:25]} Nf6 {[%clk 00:15:37]} {[%emt 00:01:05]} 14. f4
{[%clk 00:17:20]} {[%emt 00:00:54]} Ba5 {[%clk 00:13:57]} {[%emt 00:01:50]} 15.
Rf3 {[%clk 00:16:30]} {[%emt 00:01:00]} h6 {[%clk 00:15:20]} {[%emt 00:01:29]}
16. Nh3 {[%clk 00:16:15]} {[%emt 00:00:32]} Bxc3 {[%clk 00:15:27]} {[%emt
00:00:02]} 17. bxc3 {[%clk 00:16:15]} {[%emt 00:00:10]} Ne4 {[%clk 00:15:36]}
{[%emt 00:00:02]} 18. f5 {[%clk 00:16:05]} {[%emt 00:00:19]} f6 {[%clk
00:13:07]} {[%emt 00:02:39]} 19. Nf4 {[%clk 00:15:54]} {[%emt 00:00:21]} Rf7
{[%clk 00:12:42]} {[%emt 00:00:35]} 20. c4 {[%clk 00:15:41]} {[%emt 00:00:24]}
Nxf5 {[%clk 00:12:13]} {[%emt 00:00:39]} 21. cxd5 {[%clk 00:15:00]} {[%emt
00:00:50]} cxd5 {[%clk 00:12:20]} {[%emt 00:00:03]} 22. Ne6 {[%clk 00:14:55]}
{[%emt 00:00:16]} Qe7 {[%clk 00:12:09]} {[%emt 00:00:20]} 23. Nf4 {[%clk
00:14:31]} {[%emt 00:00:33]} Qd7 {[%clk 00:12:06]} {[%emt 00:00:14]} 24. Ng6
{[%clk 00:14:04]} {[%emt 00:00:37]} Nxe3 {[%clk 00:12:04]} {[%emt 00:00:12]} 25.
Qxe3 {[%clk 00:13:41]} {[%emt 00:00:33]} Re8 {[%clk 00:11:30]} {[%emt
00:00:43]} 26. Qf4 {[%clk 00:13:25]} {[%emt 00:00:27]} Ng5 {[%clk 00:10:38]}
{[%emt 00:01:03]} 27. Re3 {[%clk 00:13:18]} {[%emt 00:00:17]} Kh7 {[%clk
00:10:21]} {[%emt 00:00:26]} 28. Nh4 {[%clk 00:12:44]} {[%emt 00:00:44]} Rxe3
{[%clk 00:10:16]} {[%emt 00:00:15]} 29. Qxe3 {[%clk 00:12:51]} {[%emt
00:00:04]} Re7 {[%clk 00:10:16]} {[%emt 00:00:10]} 30. Qd3+ {[%clk 00:12:53]}
{[%emt 00:00:07]} Kg8 {[%clk 00:10:24]} {[%emt 00:00:02]} 31. Ng6 {[%clk
00:12:16]} {[%emt 00:00:48]} Re4 {[%clk 00:10:20]} {[%emt 00:00:11]} 32. Rf1
{[%clk 00:11:46]} {[%emt 00:00:41]} Qe8 {[%clk 00:09:54]} {[%emt 00:00:36]} 33.
Nf4 {[%clk 00:10:42]} {[%emt 00:01:13]} Re1 {[%clk 00:09:21]} {[%emt 00:00:45]}
34. h4 {[%clk 00:10:24]} {[%emt 00:00:27]} Rxf1+ {[%clk 00:09:01]} {[%emt
00:00:31]} 35. Qxf1 {[%clk 00:10:24]} {[%emt 00:00:10]} Qe3+ {[%clk 00:08:51]}
{[%emt 00:00:19]} 36. Kh1 {[%clk 00:10:07]} {[%emt 00:00:28]} Ne4 {[%emt
00:00:06]} 37. Qf3 {[%clk 00:09:43]} {[%emt 00:00:33]} Qxd4 {[%clk 00:08:43]}
{[%emt 00:00:23]} 38. Kh2 {[%clk 00:09:27]} {[%emt 00:00:27]} Qxc5 {[%clk
00:08:02]} {[%emt 00:00:50]} 39. Qg4 {[%clk 00:08:56]} {[%emt 00:00:40]} Qd6
{[%clk 00:07:51]} {[%emt 00:00:21]} 40. Qc8+ {[%clk 00:09:00]} {[%emt
00:00:05]} Kh7 {[%clk 00:07:56]} {[%emt 00:00:06]} 41. Qf5+ {[%clk 00:09:09]}
{[%emt 00:00:02]} g6 {[%clk 00:07:43]} {[%emt 00:00:22]} 42. Qxg6+ {[%clk
00:09:11]} {[%emt 00:00:08]} Kg7 {[%clk 00:07:35]} {[%emt 00:00:14]} 43. Qxh6+
{[%clk 00:09:17]} {[%emt 00:00:09]} Kf8 {[%clk 00:07:34]} 44. g3+ {[%clk
00:09:08]} {[%emt 00:00:29]} Ke7 {[%clk 00:07:02]} 45. Qg7+ {[%clk 00:08:46]}
{[%emt 00:01:15]} Kd7 {[%clk 00:07:07]} 46. h5+ {[%clk 00:08:41]} {[%emt
00:00:20]} Kc6 {[%clk 00:06:48]} 47. h6 {[%clk 00:08:38]} {[%emt 00:00:42]} Qe5
{[%clk 00:06:47]} 48. Ng2 {[%clk 00:08:42]} {[%emt 00:00:16]} Qb2 {[%clk
00:06:46]} 49. h7 {[%clk 00:08:36]} {[%emt 00:00:28]} Ng5 {[%clk 00:06:42]} 50.
Kh3 {[%clk 00:08:38]} {[%emt 00:00:21]} Qe2+ {[%clk 00:06:05]} {[%emt
00:01:28]} 51. Kh4 {[%clk 00:07:36]} {[%emt 00:00:52]} Qe4+ {[%clk 00:05:49]}
{[%emt 00:00:24]} 52. Nf4 {[%clk 00:07:33]} {[%emt 00:00:15]} Qh1+ {[%clk
00:05:41]} {[%emt 00:00:17]} 53. Kg4 {[%clk 00:07:12]} {[%emt 00:00:32]} Nxh7
{[%clk 00:05:34]} {[%emt 00:00:18]} 54. Qf7 {[%clk 00:07:03]} {[%emt 00:00:18]}
Qe4 {[%clk 00:05:36]} {[%emt 00:00:07]} 55. Qg6 {[%clk 00:06:05]} {[%emt
00:01:09]} Qxg6+ {[%clk 00:04:27]} {[%emt 00:01:18]} 56. Nxg6 {[%clk 00:06:11]}
{[%emt 00:00:04]} d4 {[%clk 00:04:31]} {[%emt 00:00:06]} 57. Nf4 {[%clk
00:06:15]} {[%emt 00:00:05]} Kc5 {[%clk 00:04:37]} {[%emt 00:00:04]} 58. Kf5
{[%clk 00:06:15]} {[%emt 00:00:11]} b5 {[%clk 00:04:19]} {[%emt 00:00:28]} 59.
Kg6 {[%clk 00:06:20]} {[%emt 00:00:06]} Ng5 {[%clk 00:04:15]} {[%emt 00:00:13]}
60. Kxf6 {[%clk 00:06:25]} {[%emt 00:00:07]} Ne4+ {[%clk 00:04:16]} {[%emt
00:00:09]} 61. Ke5 {[%clk 00:06:32]} {[%emt 00:00:03]} Nxg3 {[%clk 00:04:20]}
{[%emt 00:00:06]} 62. Nd3+ {[%clk 00:06:38]} {[%emt 00:00:04]} Kc4 {[%clk
00:04:25]} {[%emt 00:00:05]} 63. Nb2+ {[%clk 00:06:40]} {[%emt 00:00:08]} Kc3
{[%clk 00:04:31]} {[%emt 00:00:04]} 64. Nd1+ {[%clk 00:06:48]} {[%emt
00:00:02]} Kd3 {[%clk 00:04:28]} {[%emt 00:00:14]} 65. Nb2+ {[%clk 00:06:48]}
{[%emt 00:00:09]} Ke3 {[%emt 00:01:11]} 66. Kd5 {[%emt 00:00:08]} a6 {[%emt
00:00:19]} 67. Kc5 {[%emt 00:00:06]} Nf1 {[%emt 00:00:08]} 68. Kb6 {[%clk
00:06:53]} {[%emt 00:00:10]} 0-1